bitfinex-derivatives/quotes_ETHF0:USTF0_20251009
["timestamp","ask_amount","ask_price","bid_price","bid_amount"]
[1760038344188,6.4733617,4338.7,4338.6,0.00210101]
[1760038345394,6.9852166,4338.7,4338.6,0.32380101]
[1760038345796,6.9852166,4338.7,4338.6,0.73843101]
[1760038349989,6.9852166,4338.7,4338.6,1.17353101]
[1760038349990,6.7542166,4338.7,4338.6,1.17353101]
[1760038350194,6.9852166,4338.7,4338.6,1.17353101]
[1760038350694,3.7774166,4338.7,4338.6,1.17353101]
[1760038358901,3.77968878,4338.7,4338.6,1.17353101]
[1760038362400,3.77968878,4338.7,4338.6,0.95113101]
[1760038365804,3.77968878,4338.7,4338.6,1.17243101]
[1760038366001,0.51412708,4338.7,4338.6,6.17243101]
[1760038366402,0.231,4339.0,4338.9,1.1853]
[1760038367104,0.74835302,4339.0,4338.9,1.1853]
[1760038368205,0.51735302,4339.0,4338.9,1.1853]
[1760038371108,3.44480455,4339.0,4338.9,0.5558]
[1760038371516,3.67580455,4339.0,4338.9,0.9704]
[1760038371708,3.67580455,4339.0,4338.9,0.5558]
[1760038372005,3.67580455,4339.0,4338.9,0.9704]
[1760038372310,3.44480455,4339.0,4338.9,1.1853]
[1760038375710,3.44480455,4339.0,4338.9,0.5558]
[1760038375912,3.44480455,4339.0,4338.9,0.332]
[1760038377713,3.44480455,4339.0,4338.9,0.5558]
[1760038379617,3.44480455,4339.0,4338.9,0.9704]
[1760038379912,3.44480455,4339.0,4338.9,0.5558]
[1760038381112,3.44480455,4339.0,4338.9,1.1853]
[1760038381309,3.44480455,4339.0,4338.9,0.5558]
[1760038381513,3.44480455,4339.0,4338.9,0.332]
[1760038382305,3.44480455,4339.0,4338.6,0.00210101]
[1760038382510,0.74835302,4338.9,4338.7,0.332]
[1760038382715,0.51735302,4338.8,4338.7,0.332]
[1760038382916,3.52577865,4338.8,4338.7,0.332]
[1760038383112,3.52577865,4338.8,4338.7,0.7707]
[1760038383312,3.52577865,4338.8,4338.7,1.18532]
[1760038390124,3.52577865,4338.8,4338.7,0.74662]
[1760038390826,3.52577865,4338.8,4338.7,0.332]
[1760038392321,3.52577865,4338.8,4338.7,0.74662]
[1760038395238,3.52577865,4338.8,4338.7,0.97562]
[1760038396438,3.52577865,4338.8,4338.7,0.74662]
[1760038396838,3.52577865,4338.8,4338.7,0.97562]
[1760038398237,3.52577865,4338.8,4338.7,1.19842]
[1760038398833,0.51735302,4338.8,4338.7,1.19842]
[1760038399939,0.51735302,4338.8,4338.7,1.42942]
[1760038404945,0.51735302,4338.8,4338.7,1.19842]
[1760038405141,3.50871004,4338.8,4338.7,0.74662]
[1760038413855,3.50871004,4338.8,4338.7,0.332]
[1760038414155,3.73971004,4338.8,4338.7,0.3401]
[1760038415257,8.73971004,4338.8,4338.6,0.00210101]
[1760038415557,0.51735302,4338.7,4338.6,0.00210101]
[1760038415951,3.53883924,4338.7,4338.6,0.00210101]
[1760038418651,8.53883924,4338.7,4337.7,3.2078]
[1760038418857,3.2078,4338.1,4337.4,0.3356]
[1760038419060,0.74835302,4338.0,4337.4,0.3356]
[1760038419358,0.51655575,4337.9,4337.5,0.3356]
[1760038419560,0.74755575,4337.8,4337.5,0.3356]
[1760038419759,0.51655575,4337.7,4337.5,0.33730397]
[1760038420062,3.18682399,4337.6,4337.5,0.33730397]
[1760038420261,3.70337974,4337.6,4337.5,0.33730397]
[1760038420955,3.88819623,4337.6,4337.5,0.33730397]
[1760038421360,3.70337974,4337.6,4337.5,0.33730397]
[1760038422460,3.70337974,4337.6,4337.5,0.00170397]
[1760038422763,6.91117974,4337.6,4337.5,0.00170397]
[1760038423960,6.91117974,4337.6,4336.7,0.3356]
[1760038423961,11.68017974,4337.6,4336.7,0.3356]
[1760038424265,0.74755575,4337.5,4336.7,0.7504]
[1760038424464,0.51655575,4337.4,4336.7,0.7504]
[1760038424663,0.74755575,4337.3,4336.7,0.7504]
[1760038424860,0.51655575,4337.2,4336.7,0.7504]
[1760038425063,0.74755575,4337.1,4336.8,0.7377]
[1760038425359,3.03262458,4337.0,4336.8,0.4148]
[1760038425560,3.03262458,4337.0,4336.9,0.3229]
[1760038425761,3.26362458,4337.0,4336.9,0.3229]
[1760038425958,0.75057253,4337.0,4336.9,0.3229]
[1760038426264,3.29468764,4337.0,4336.9,0.3229]
[1760038426659,3.06368764,4337.0,4336.9,0.3229]
[1760038426861,3.29468764,4337.0,4336.9,0.3229]
[1760038427060,0.231,4337.0,4336.9,0.3229]
[1760038427263,3.19661946,4337.0,4336.9,0.3229]
[1760038428966,3.19661946,4337.0,4336.7,0.00249162]
[1760038429176,3.19661946,4337.0,4336.7,0.74020162]
[1760038429467,3.19661946,4337.0,4336.8,0.7377]
[1760038429656,3.19661946,4337.0,4336.9,0.3229]
[1760038430468,3.19661946,4337.0,4336.9,0.73769]
[1760038430969,3.19661946,4337.0,4336.9,0.3229]
[1760038431465,6.40441946,4337.0,4336.7,0.32539162]
[1760038432466,6.40441946,4337.0,4336.7,0.00249162]
[1760038437869,6.17341946,4337.0,4336.8,0.3229]
[1760038438072,6.17341946,4337.0,4336.9,0.41479]
[1760038438267,6.40441946,4337.0,4336.9,1.18079]
[1760038438468,6.40441946,4337.0,4336.9,0.3229]
[1760038438668,3.19661946,4337.0,4336.9,0.3229]
[1760038440271,6.40441946,4337.0,4336.7,0.00249162]
[1760038440573,0.51920998,4336.9,4335.9,0.73778]
[1760038440779,0.75020998,4336.8,4336.0,0.1377]
[1760038441067,0.51920998,4336.7,4336.4,0.5513]
[1760038441269,2.94723292,4336.8,4336.6,0.766]
[1760038441469,3.2078,4337.0,4336.8,0.64319]
[1760038441669,3.2078,4337.0,4336.9,0.5513]
[1760038442068,6.17184182,4337.0,4336.9,0.5513]
[1760038442267,6.40284182,4337.0,4336.9,0.5513]
[1760038442969,0.0019666,4337.2,4337.0,0.4606]
[1760038443171,0.2329666,4337.2,4337.1,0.766]
[1760038443565,3.26113143,4337.2,4337.1,0.766]
[1760038443970,3.26113143,4337.2,4337.1,1.18077]
[1760038444171,3.26113143,4337.2,4337.1,0.3229]
[1760038444370,3.26113143,4337.2,4337.0,0.4606]
[1760038444568,3.26113143,4337.2,4336.6,0.0026599]
[1760038444773,3.26113143,4337.2,4336.8,0.3229]
[1760038444774,0.51985288,4337.1,4336.8,0.3229]
[1760038444973,0.231,4337.0,4336.9,0.3229]
[1760038445168,3.75234784,4337.0,4336.9,0.3229]
[1760038445379,0.75109891,4337.0,4336.9,0.3229]
[1760038445680,3.75234784,4337.0,4336.9,0.3229]
[1760038445975,3.75234784,4337.0,4336.9,0.5513]
[1760038446167,3.75234784,4337.0,4336.6,0.0026599]
[1760038446374,0.52034251,4336.9,4336.7,0.3393]
[1760038446571,0.52034251,4336.8,4336.7,0.3393]
[1760038446777,2.97002675,4336.8,4336.7,0.3393]
[1760038446975,3.49036926,4336.8,4336.7,0.3393]
[1760038447282,0.52034251,4336.8,4336.7,0.3393]
[1760038447580,3.55470983,4336.8,4336.7,0.3393]
[1760038450083,3.55470983,4336.8,4336.6,0.0026599]
[1760038450276,0.52034251,4336.7,4336.6,0.0026599]
[1760038450676,3.53875109,4336.7,4336.6,0.0026599]
[1760038453279,4.78056121,4336.7,4336.0,0.477]
[1760038453580,3.2078,4336.3,4335.6,0.3393]
[1760038453779,0.75134251,4336.2,4335.6,0.63581]
[1760038453980,0.52034251,4336.1,4335.7,0.2209]
[1760038454176,0.52034251,4336.1,4335.7,0.3393]
[1760038454382,0.52034251,4336.1,4336.0,0.4785]
[1760038454581,0.75134251,4336.1,4336.0,0.6994]
[1760038454782,3.77481823,4336.1,4336.0,0.6994]
[1760038455484,0.52034251,4336.1,4336.0,0.9136]
[1760038455781,0.52123203,4336.2,4336.1,0.84997]
[1760038455981,0.52123203,4336.2,4336.1,1.18927]
[1760038456678,3.52448777,4336.2,4336.1,0.3393]
[1760038457480,3.52448777,4336.2,4335.8,0.3393]
[1760038457684,0.75223203,4336.1,4335.8,0.3393]
[1760038457887,0.52123203,4336.0,4335.8,0.3393]
[1760038458085,0.231,4335.9,4335.8,0.3393]
[1760038458283,0.75223203,4335.9,4335.7,0.00183659]
[1760038458481,0.52123203,4335.8,4335.7,0.00183659]
[1760038458880,3.49402978,4335.8,4335.7,0.00183659]
[1760038460185,6.70182978,4335.8,4335.7,0.00183659]
[1760038460484,6.70182978,4335.8,4335.3,0.3393]
[1760038460790,0.75223203,4335.7,4335.1,0.2209]
[1760038460993,0.52123203,4335.6,4335.5,0.1392]
[1760038461183,3.56863657,4335.6,4335.5,0.4785]
[1760038461483,3.56863657,4335.6,4335.5,0.48081307]
[1760038461891,3.56863657,4335.6,4335.5,0.34161307]
[1760038462287,3.56863657,4335.6,4335.5,0.00231307]
[1760038468386,3.56863657,4335.6,4335.5,0.34161307]
[1760038468690,3.79963657,4335.6,4335.5,0.48081307]
[1760038469084,3.79963657,4335.6,4335.5,0.00231307]
[1760038469492,3.79963657,4335.6,4335.5,0.34161307]
[1760038470286,3.79963657,4335.6,4335.5,0.48081307]
[1760038470490,3.56863657,4335.6,4335.5,0.48081307]
[1760038470689,3.79963657,4335.6,4335.5,0.70171307]
[1760038471483,3.79963657,4335.6,4335.5,0.48081307]
[1760038472796,3.79963657,4335.6,4335.5,0.91591307]
[1760038473089,3.79963657,4335.6,4335.5,0.70171307]
[1760038473397,3.79963657,4335.6,4335.5,0.48081307]
[1760038475797,3.79963657,4335.6,4335.5,1.11663307]
[1760038476500,3.79963657,4335.6,4335.5,0.70171307]
[1760038476899,3.79963657,4335.6,4335.5,0.48081307]
[1760038478595,3.79963657,4335.6,4335.5,0.34161307]
[1760038478999,3.79963657,4335.6,4335.5,0.46981307]
[1760038480105,3.79963657,4335.6,4335.5,0.88473307]
[1760038481000,3.79963657,4335.6,4335.5,1.11243307]
[1760038483002,3.79963657,4335.6,4335.5,0.46981307]
[1760038483200,3.79963657,4335.6,4335.5,0.00231307]
[1760038484310,3.79963657,4335.6,4335.5,0.73553307]
[1760038485106,3.79963657,4335.6,4335.5,0.86833307]
[1760038485306,3.79963657,4335.6,4335.5,0.45341307]
[1760038485507,3.79963657,4335.6,4335.5,0.00231307]
[1760038488207,3.79963657,4335.6,4335.5,0.87383307]
[1760038488398,3.79963657,4335.6,4335.5,1.10153307]
[1760038489605,3.79963657,4335.6,4335.5,0.68661307]
[1760038489804,3.79963657,4335.6,4335.5,0.45891307]
[1760038490412,3.79963657,4335.6,4335.5,0.32611307]
[1760038490912,3.79963657,4335.6,4335.5,0.74103307]
[1760038491812,3.79963657,4335.6,4335.5,0.32611307]
[1760038493715,3.79963657,4335.6,4335.5,0.00231307]
[1760038494012,5.04144669,4335.6,4335.5,0.00231307]
[1760038495216,5.04144669,4335.6,4335.5,1.10153307]
[1760038495422,3.79963657,4335.6,4335.5,1.32423307]
[1760038495607,3.79963657,4335.6,4335.5,1.10153307]
[1760038495812,3.79963657,4335.6,4335.5,0.00231307]
[1760038496020,3.79963657,4335.6,4335.1,0.41496]
[1760038496021,3.79963657,4335.6,4335.1,0.73876]
[1760038496219,1.76657714,4335.5,4335.1,0.73876]
[1760038496421,0.231,4335.4,4335.2,0.3238]
[1760038496719,0.52123203,4335.3,4335.2,0.73875]
[1760038496920,0.52123203,4335.3,4335.2,0.32621398]
[1760038497116,11.72957453,4335.3,4334.4,0.41503]
[1760038497321,1.24540476,4335.0,4334.2,0.3238]
[1760038497618,3.75277453,4334.9,4334.6,0.73881]
[1760038497818,0.52123203,4334.8,4334.6,0.3238]
[1760038498019,0.52123203,4334.8,4334.6,0.32639186]
[1760038498020,0.231,4334.7,4334.6,0.32639186]
[1760038498214,3.70562737,4334.7,4334.6,0.00259186]
[1760038498419,6.91342737,4334.7,4334.6,0.00259186]
[1760038498810,6.91342737,4334.7,4334.0,0.463]
[1760038499014,0.52123203,4334.6,4334.0,0.87806]
[1760038499218,0.231,4334.5,4334.1,0.3238]
[1760038499411,0.52123203,4334.4,4333.8,3.5316]
[1760038499614,0.231,4334.3,4333.8,3.62288]
[1760038499818,0.52123203,4334.2,4333.8,3.62587638]
[1760038500116,0.52123203,4334.2,4334.0,0.3238]
[1760038500117,3.25200523,4334.1,4334.0,0.3238]
[1760038500312,3.77582447,4334.1,4333.8,0.00299638]
[1760038500520,0.52123203,4334.0,4333.8,0.00299638]
[1760038500717,0.231,4333.9,4333.8,0.00299638]
[1760038500919,3.77323726,4333.9,4333.8,0.00299638]
[1760038502221,3.77323726,4333.9,4332.9,0.0230795]
[1760038502222,8.77323726,4333.9,4333.0,0.4566]
[1760038502524,8.77323726,4333.9,4333.5,0.4566]
[1760038502525,3.2078,4333.6,4333.5,0.4566]
[1760038502825,6.96511298,4333.6,4333.5,0.4566]
[1760038503225,6.96511298,4333.6,4333.5,0.45891972]
[1760038505124,6.96511298,4333.6,4332.9,0.0230795]
[1760038505319,0.52123203,4333.5,4333.1,0.73895]
[1760038505520,0.52123203,4333.5,4333.4,0.7742]
[1760038505720,0.00258721,4334.1,4334.0,0.8991]
[1760038505920,0.23358721,4334.1,4334.0,0.8991]
[1760038506119,3.21804754,4334.1,4334.0,0.8991]
[1760038506422,3.21804754,4334.1,4334.0,0.90182478]
[1760038507521,3.21804754,4334.1,4334.0,0.46722478]
[1760038508027,3.21804754,4334.1,4334.0,0.68992478]
[1760038508432,3.21804754,4334.1,4334.0,0.90182478]
[1760038508433,2.98704754,4334.1,4334.0,0.90182478]
[1760038508731,3.21804754,4334.1,4334.0,0.90182478]
[1760038512828,3.21804754,4334.1,4334.0,1.31689478]
[1760038513823,3.21804754,4334.1,4334.0,0.46722478]
[1760038514023,3.21804754,4334.1,4334.0,0.00272478]
[1760038514230,3.73957734,4334.1,4334.0,0.00272478]
[1760038515932,8.73957734,4334.1,4333.0,0.1291]
[1760038516131,3.2078,4333.6,4333.0,0.1291]
[1760038516435,3.80041724,4333.5,4333.0,0.1291]
[1760038516636,0.52130854,4333.4,4333.1,0.3354]
[1760038516837,0.231,4333.3,4333.1,0.3354]
[1760038517030,3.28608397,4333.3,4333.1,0.00278869]
[1760038518133,3.28608397,4333.3,4332.9,0.0230795]
[1760038518336,3.2078,4333.1,4332.9,0.0230795]
[1760038518633,3.75629713,4333.0,4332.9,0.0230795]
[1760038518830,3.23498791,4333.0,4332.9,0.7930795]
[1760038519225,3.23498791,4333.0,4332.9,0.7957587]
[1760038519633,3.23498791,4333.0,4332.9,0.5838587]
[1760038521336,3.00398791,4333.0,4332.9,0.7957587]
[1760038521532,0.00258721,4334.1,4334.0,0.8991]
[1760038521837,3.04976118,4334.1,4334.0,0.8991]
[1760038525327,3.57183189,4334.1,4334.0,0.8991]
[1760038526831,3.57183189,4334.1,4334.0,0.4645]
[1760038527032,3.57183189,4334.1,4333.7,0.3354]
[1760038527233,3.04976118,4334.1,4334.0,0.8991]
[1760038527433,3.80319385,4334.1,4334.0,0.8991]
[1760038528040,3.80319385,4334.1,4334.0,0.6872]
[1760038528843,3.57219385,4334.1,4334.0,0.6872]
[1760038529141,3.80319385,4334.1,4334.0,0.6872]
[1760038530445,3.80319385,4334.1,4334.0,1.10227]
[1760038531244,3.80319385,4334.1,4334.0,0.87957]
[1760038531441,3.80319385,4334.1,4334.0,0.4645]
[1760038533341,3.80319385,4334.1,4334.0,0.87957]
[1760038533646,3.80319385,4334.1,4334.0,1.31417]
[1760038534636,1.24540476,4335.1,4334.6,0.2227]
[1760038534841,0.33348,4335.5,4335.4,0.77]
[1760038535038,0.56448,4335.5,4335.4,0.77]
[1760038535242,4.11843822,4335.5,4335.4,0.77]
[1760038535747,4.12040882,4335.5,4335.4,0.5581]
[1760038536349,4.12040882,4335.5,4335.4,0.3354]
[1760038539843,3.59799495,4335.5,4335.4,0.3354]
[1760038540043,4.11943126,4335.5,4335.4,0.3354]
[1760038540643,4.11943126,4335.5,4335.0,0.1291]
[1760038540644,4.11943126,4335.5,4335.2,0.3184]
[1760038540844,0.52143631,4335.4,4334.9,0.41498]
[1760038541148,3.52483438,4335.3,4335.0,0.3184]
[1760038541351,3.96023631,4335.2,4335.0,0.3184]
[1760038541545,0.52143631,4335.1,4334.5,0.1291]
[1760038541742,0.75243631,4335.0,4334.6,0.3184]
[1760038542049,0.75243631,4335.0,4334.5,0.4475]
[1760038542050,3.54308815,4334.9,4334.5,0.4475]
[1760038542249,0.75243631,4334.8,4334.5,0.4475]
[1760038542449,0.52143631,4334.7,4334.5,0.86252]
[1760038542648,0.75243631,4334.6,4334.5,0.86252]
[1760038542943,3.77408815,4334.6,4334.5,0.4475]
[1760038543145,3.77408815,4334.6,4334.2,3.5262]
[1760038543350,0.52143631,4334.5,4334.1,0.3184]
[1760038543650,3.77731974,4334.4,4333.7,3.5262]
[1760038543950,0.52143631,4334.3,4333.7,3.5262]
[1760038544245,0.75243631,4334.2,4333.8,0.73348]
[1760038544449,0.52143631,4334.1,4333.9,0.3184]
[1760038544751,0.75243631,4334.0,4333.9,0.7516]
[1760038545143,3.70409687,4334.0,4333.9,0.7516]
[1760038545344,3.47309687,4334.0,4333.9,0.7516]
[1760038547966,3.2078,4334.6,4334.5,1.31862]
[1760038548155,3.96052557,4334.6,4334.5,1.31862]
[1760038548351,7.02137483,4334.6,4334.5,0.9036]
[1760038548756,6.49964926,4334.6,4334.5,1.09112]
[1760038549758,6.49964926,4334.6,4334.5,1.31862]
[1760038550058,6.49964926,4334.6,4334.5,1.09112]
[1760038550362,7.02189885,4334.6,4334.5,1.09112]
[1760038552060,7.02189885,4334.6,4334.5,0.87992]
[1760038552958,7.02189885,4334.6,4334.5,1.09112]
[1760038553155,7.02189885,4334.6,4334.5,1.31862]
[1760038554560,7.02189885,4334.6,4334.5,0.87992]
[1760038555167,7.02189885,4334.6,4334.5,1.09112]
[1760038556760,3.81409885,4334.6,4334.5,1.31862]
[1760038559862,3.81409885,4334.6,4334.5,0.9036]
[1760038560562,3.81409885,4334.6,4334.5,0.4649]
[1760038561161,3.81409885,4334.6,4334.5,0.6761]
[1760038561961,3.81409885,4334.6,4334.5,0.3322]
[1760038562163,3.81409885,4334.6,4334.0,0.1327]
[1760038562369,0.52224959,4334.5,4334.1,0.3322]
[1760038562561,0.231,4334.4,4334.0,0.3439]
[1760038562761,0.231,4334.4,4334.1,0.74726]
[1760038562762,0.52224959,4334.3,4334.1,0.74726]
[1760038562967,0.231,4334.2,4334.1,0.95846]
[1760038563164,3.2325977,4334.2,4334.1,0.95846]
[1760038563568,3.2325977,4334.2,4334.1,0.5434]
[1760038564469,3.2325977,4334.2,4334.1,0.95846]
[1760038564968,3.2325977,4334.2,4334.1,0.5434]
[1760038565169,3.75550072,4334.2,4334.1,0.5434]
[1760038566073,3.75550072,4334.2,4334.1,0.3322]
[1760038567977,3.75550072,4334.2,4334.1,0.5467]
[1760038568180,3.75550072,4334.2,4334.1,0.3322]
[1760038568472,3.75550072,4334.2,4334.0,0.1327]
[1760038568473,3.75550072,4334.2,4333.8,0.3319]
[1760038568678,0.52290302,4334.1,4333.7,3.2078]
[1760038568878,0.231,4334.0,4333.8,0.3319]
[1760038569080,0.52290302,4333.9,4333.8,0.3319]
[1760038569476,3.56066209,4333.9,4333.8,1.18089]
[1760038570176,3.2078,4334.6,4334.5,1.31002]
[1760038570374,3.96219127,4334.6,4334.5,1.31002]
[1760038570582,6.97027972,4334.6,4334.5,1.31002]
[1760038570784,3.73119127,4334.6,4334.5,1.31002]
[1760038571082,0.52339127,4334.6,4334.5,1.31002]
[1760038577198,3.57759545,4334.6,4334.5,0.4611]
[1760038577394,3.57759545,4334.6,4334.4,0.3319]
[1760038577599,0.52339127,4334.5,4334.4,0.3319]
[1760038577986,3.57759545,4334.5,4334.4,1.18083]
[1760038580499,3.57759545,4334.5,4334.4,0.7658]
[1760038581397,3.57759545,4334.5,4334.4,1.18083]
[1760038582100,3.57759545,4334.5,4334.4,0.96143]
[1760038582706,3.57759545,4334.5,4334.4,0.74693]
[1760038584396,0.2839,4334.0,4333.7,3.2078]
[1760038584596,0.4532,4333.8,4333.7,3.6417]
[1760038584796,1.20759127,4333.8,4333.7,4.0568]
[1760038585093,0.52339127,4333.8,4333.7,4.0568]
[1760038585299,0.2839,4334.5,4334.1,0.84896]
[1760038585300,0.99092612,4334.2,4334.1,0.84896]
[1760038585498,0.99087524,4334.2,4334.1,0.84896]
[1760038585800,4.0064786,4334.2,4334.1,0.84896]
[1760038586494,3.5450786,4334.2,4334.1,1.18086]
[1760038586797,0.52947524,4334.2,4334.1,6.18086]
[1760038588903,0.2304,4334.8,4334.7,0.84888]
[1760038589104,0.2304,4334.8,4334.7,1.18078]
[1760038589303,3.78203208,4334.8,4334.7,1.18078]
[1760038591005,4.28873208,4334.8,4334.7,1.18078]
[1760038591406,4.28873208,4334.8,4334.7,0.96138]
[1760038595305,4.00483208,4334.8,4334.7,1.18078]
[1760038596506,4.28863208,4334.8,4334.7,1.18078]
[1760038597006,4.28863208,4334.8,4334.7,0.74688]
[1760038597907,3.75929014,4334.8,4334.7,0.74688]
[1760038599406,3.75929014,4334.8,4334.7,0.41498]
[1760038599407,3.99029014,4334.8,4334.7,0.41498]
[1760038599705,4.23601687,4334.8,4334.2,0.41505]
[1760038599905,0.2301,4334.2,4334.1,0.96706]
[1760038600104,0.99172673,4334.2,4334.1,0.96706]
[1760038600305,1.27552673,4334.2,4334.1,0.96706]
[1760038600612,4.33492494,4334.2,4334.1,0.41506]
[1760038601305,0.2321,4333.9,4333.7,3.2078]
[1760038601505,1.27549151,4333.8,4333.7,3.2078]
[1760038601708,4.31992456,4333.8,4333.5,0.4151]
[1760038602010,0.746,4333.6,4333.5,0.7479]
[1760038602208,1.50649151,4333.6,4333.5,0.9671]
[1760038602408,4.52392018,4333.6,4333.5,0.9671]
[1760038602708,4.52392018,4333.6,4333.5,0.7479]
[1760038603502,4.52392018,4333.6,4333.5,0.3328]
[1760038603707,0.2838,4333.5,4333.4,0.3328]
[1760038603907,1.27549151,4333.5,4333.4,0.74792]
[1760038604104,4.31851793,4333.5,4333.4,0.74792]
[1760038605311,3.78902642,4333.5,4333.4,0.74792]
[1760038606909,3.78902642,4333.5,4333.4,0.96712]
[1760038608311,4.02002642,4333.5,4333.4,0.96712]
[1760038608908,3.78902642,4333.5,4333.4,0.96712]
[1760038609107,3.73622642,4333.5,4333.4,1.19612]
[1760038609509,3.50412642,4333.5,4333.4,1.19612]
[1760038609716,0.231,4333.5,4333.4,1.19612]
[1760038610110,0.4579,4333.5,4333.4,1.19612]
[1760038610411,0.6735,4333.5,4333.4,1.19612]
[1760038612315,0.4425,4333.5,4333.4,1.19612]
[1760038612510,0.4425,4333.7,4333.6,0.44]
[1760038612707,0.7264,4333.7,4333.6,0.7605]
[1760038612906,3.4331062,4333.7,4333.6,1.1756]
[1760038613113,3.2175062,4333.7,4333.6,1.1756]
[1760038613914,0.231,4334.0,4333.9,0.41508]
[1760038614116,0.98766195,4334.0,4333.9,1.17558]
[1760038614417,4.02715516,4334.0,4333.9,1.17558]
[1760038614612,4.29565516,4334.0,4333.9,0.94658]
[1760038615615,4.52665516,4334.0,4333.6,0.3205]
[1760038615819,1.25616247,4333.9,4333.8,0.94659]
[1760038616020,0.7264,4333.9,4333.8,0.94659]
[1760038616220,3.67383018,4333.9,4333.8,0.94659]
[1760038617919,2.94743018,4333.9,4333.8,1.17559]
[1760038618123,0.2269,4334.5,4334.4,1.17553]
[1760038618621,4.24008269,4334.5,4334.4,1.17553]
[1760038619621,4.24008269,4334.5,4334.4,0.5315]
[1760038619822,4.24008269,4334.5,4334.4,0.41503]
[1760038620318,0.4425,4333.7,4333.4,3.2078]
[1760038620624,0.6735,4333.7,4333.6,0.7356]
[1760038620922,3.95665779,4333.7,4333.6,0.3205]
[1760038621119,0.4425,4333.5,4333.4,3.94342]
[1760038621324,0.7264,4333.5,4333.4,3.94342]
[1760038621622,0.2839,4333.4,4333.0,0.133]
[1760038621821,0.4425,4333.2,4333.1,0.94665]
[1760038622125,3.46006609,4333.2,4333.1,0.94665]
[1760038622321,3.46006609,4333.2,4333.1,1.17565]
[1760038622825,0.7264,4333.0,4332.8,3.2078]
[1760038623120,0.4425,4333.9,4333.8,0.7605]
[1760038623315,0.98788487,4334.0,4333.9,1.17557]
[1760038623518,1.20348487,4334.0,4333.9,1.17557]
[1760038623721,4.21648915,4334.0,4333.9,1.17557]
[1760038625220,4.21648915,4334.0,4333.9,0.7605]
[1760038626930,0.52998487,4334.0,4333.9,0.7605]
[1760038627125,0.231,4334.4,4334.3,0.87274]
[1760038627327,0.6638,4334.4,4334.3,0.8056]
[1760038627530,4.13516199,4334.4,4334.3,0.8056]
[1760038628628,4.41886199,4334.4,4334.3,0.8056]
[1760038629526,4.18786199,4334.4,4334.3,0.8056]
[1760038629830,3.90416199,4334.4,4334.3,0.8056]
[1760038630028,4.13516199,4334.4,4334.3,0.8056]
[1760038630423,3.90416199,4334.4,4334.3,0.8056]
[1760038630625,4.13516199,4334.4,4334.3,0.8056]
[1760038630828,3.90416199,4334.4,4334.3,0.8056]
[1760038631131,4.13516199,4334.4,4334.3,0.8056]
[1760038631728,4.41886199,4334.4,4334.3,0.8056]
[1760038632630,4.13516199,4334.4,4334.3,1.22064]
[1760038633335,4.13516199,4334.4,4334.3,0.8056]
[1760038637631,3.47136199,4334.4,4334.3,1.22064]
[1760038639230,0.2837,4335.1,4335.0,0.3612]
[1760038639231,0.7165,4335.1,4335.0,0.3612]
[1760038639535,0.7165,4335.1,4334.6,0.5804]
[1760038639536,0.7165,4334.7,4334.6,0.5804]
[1760038639730,1.19426905,4334.7,4334.6,0.8056]
[1760038639937,4.25817199,4334.7,4334.6,0.8056]
[1760038640433,4.54187199,4334.7,4334.6,0.8056]
[1760038641730,4.54187199,4334.7,4334.1,0.64605]
[1760038642031,0.4328,4334.3,4334.2,0.8056]
[1760038642225,0.4328,4334.3,4334.2,1.22065]
[1760038642428,0.74506905,4334.3,4334.2,1.22065]
[1760038642832,0.96326905,4334.3,4334.2,1.22065]
[1760038645632,0.96326905,4334.3,4334.2,0.8056]
[1760038645834,4.23116528,4334.3,4334.2,0.5804]
[1760038647732,4.23116528,4334.3,4334.0,0.3479]
[1760038647932,0.4328,4333.7,4333.6,0.9955]
[1760038648329,0.7165,4333.7,4333.6,0.8056]
[1760038648526,1.24720494,4333.7,4333.6,0.3479]
[1760038649039,1.24720494,4333.7,4333.6,0.5804]
[1760038649736,4.27271326,4333.7,4333.6,0.3479]
[1760038649944,4.27271326,4333.7,4333.6,0.5804]
[1760038650644,4.50371326,4333.7,4333.6,0.5804]
[1760038651743,4.50371326,4333.7,4333.6,0.3479]
[1760038652540,4.50371326,4333.7,4333.6,0.5804]
[1760038654140,3.97300832,4333.7,4333.6,0.3479]
[1760038654340,4.50378066,4333.7,4333.6,0.3479]
[1760038658640,4.22008066,4333.7,4333.5,0.41511]
[1760038658838,4.22008066,4333.7,4333.5,0.73311]
[1760038658839,0.7365,4333.6,4333.5,0.73311]
[1760038659239,3.70873342,4333.6,4333.5,0.73311]
[1760038662145,3.70873342,4333.6,4333.5,0.318]
[1760038662344,3.70873342,4333.6,4333.0,0.1287]
[1760038662647,0.9675,4333.5,4333.4,0.41511]
[1760038662849,0.9675,4333.5,4333.2,0.318]
[1760038662850,1.49817708,4333.5,4332.9,0.0257587]
[1760038663050,0.7365,4333.0,4332.9,0.9884287]
[1760038663251,1.49817708,4333.0,4332.9,0.9884287]
[1760038663450,3.97195099,4333.0,4332.9,0.9884287]
[1760038666660,3.74095099,4333.0,4332.9,0.9884287]
[1760038666851,0.4594,4333.6,4333.5,0.62701]
[1760038667052,1.50541506,4333.6,4333.5,0.94671]
[1760038667254,4.56150806,4333.6,4333.5,0.94671]
[1760038668257,4.56150806,4333.6,4333.5,0.73481]
[1760038670760,4.56150806,4333.6,4333.5,1.08621]
[1760038672961,0.53121506,4333.6,4333.5,1.30681]
[1760038673265,0.7432,4334.3,4334.2,0.73474]
[1760038673561,4.4504451,4334.3,4334.2,0.73474]
[1760038675563,4.4504451,4334.3,4334.2,0.3197]
[1760038675763,4.4504451,4334.3,4334.2,0.73475]
[1760038676360,4.1666451,4334.3,4334.2,1.16725]
[1760038677364,3.4762451,4334.3,4334.2,1.16725]
[1760038677660,0.4609,4334.7,4334.6,1.16721]
[1760038678060,4.28956054,4334.7,4334.6,1.16721]
[1760038680156,4.57336054,4334.7,4334.6,1.16721]
[1760038680561,4.57336054,4334.7,4334.6,0.73471]
[1760038681468,3.59916054,4334.7,4334.6,1.16721]
[1760038681766,0.53158748,4334.7,4334.6,6.16721]
[1760038681966,0.231,4335.3,4334.9,0.5316]
[1760038681967,0.4594,4335.0,4334.9,0.5316]
[1760038682164,0.7609753,4335.0,4334.9,1.16718]
[1760038682363,2.96917192,4335.2,4335.1,1.16716]
[1760038682567,0.53079955,4335.2,4335.1,1.16716]